fUSD/lending_fUSD_20251101
["ID","MTS","AMOUNT","RATE_DAILY","PERIOD"]
[392794514,1761955202837,598.7433012,0.00030136,120]
[392794515,1761955205658,500.0,0.00030136,120]
[392794516,1761955206442,500.0,0.00030136,120]
[392794517,1761955208472,500.0,0.00030136,120]
[392794518,1761955216020,500.0,0.00030136,120]
[392794519,1761955216593,299.01444342,0.00030136,120]
[392794520,1761955218353,1157.77,0.00030136,120]
[392794521,1761955219149,590.39,0.00030136,120]
[392794522,1761955222678,500.0,0.00030136,120]
[392794523,1761955227275,500.0,0.00030136,120]
[392794524,1761955228343,500.0,0.00030136,120]
[392794525,1761955229898,500.0,0.00030136,120]
[392794526,1761955231519,500.0,0.00030136,120]
[392794527,1761955233792,625.40237676,0.00030136,120]
[392794528,1761955236969,608.78,0.00030136,120]
[392794529,1761955237862,500.0,0.00030136,120]
[392794530,1761955241259,500.0,0.00030136,120]
[392794531,1761955242360,500.0,0.00030136,120]
[392794532,1761955242568,500.0,0.00030136,120]
[392794533,1761955243463,999.0,0.00014055,3]
[392794534,1761955246021,500.0,0.00030136,120]
[392794535,1761955252882,500.0,0.00030136,120]
[392794536,1761955254511,500.0,0.00030136,120]
[392794537,1761955258291,500.0,0.00030136,120]
[392794538,1761955259904,500.0,0.00030136,120]
[392794539,1761955261817,500.0,0.00030136,120]
[392794540,1761955262130,500.0,0.00030136,120]
[392794541,1761955263132,524.52561985,0.00030136,120]
[392794542,1761955264095,1000.0,0.00030136,120]
[392794543,1761955264707,500.0,0.00030136,120]
[392794544,1761955265140,500.0,0.00030136,120]
[392794545,1761955265653,500.0,0.00030136,120]
[392794546,1761955267201,500.0,0.00030136,120]
[392794547,1761955268208,500.0,0.00030136,120]
[392794548,1761955269651,500.0,0.00030136,120]
[392794549,1761955280356,500.0,0.00030136,120]
[392794550,1761955282850,500.0,0.00030136,120]
[392794551,1761955285404,500.0,0.00030136,120]
[392794552,1761955285760,500.0,0.00030136,120]
[392794553,1761955289520,500.0,0.00030136,120]
[392794554,1761955291565,500.0,0.00030136,120]
[392794555,1761955295549,500.0,0.00030136,120]
[392794556,1761955296734,500.0,0.00030136,120]
[392794557,1761955306052,2767.64,0.00030136,120]
[392794558,1761955308363,500.0,0.00030136,120]
[392794559,1761955308530,500.0,0.00030136,120]
[392794560,1761955316871,500.0,0.00030136,120]
[392794561,1761955317454,500.0,0.00030136,120]
[392794562,1761955318082,500.0,0.00030136,120]
[392794563,1761955318389,500.0,0.00030136,120]
[392794564,1761955320816,500.0,0.00030136,120]
[392794565,1761955325484,500.0,0.00030136,120]
[392794566,1761955325555,500.0,0.00030136,120]
[392794567,1761955325621,500.0,0.00030136,120]
[392794568,1761955326512,500.0,0.00030136,120]
[392794569,1761955327255,500.0,0.00030136,120]
[392794570,1761955328464,500.0,0.00030136,120]
[392794571,1761955330238,500.0,0.00030136,120]
[392794572,1761955330369,621.96,0.00030136,120]
[392794574,1761955334741,500.0,0.00030136,120]
[392794575,1761955338367,500.0,0.00030136,120]
[392794576,1761955345116,500.0,0.00030136,120]
[392794577,1761955345798,500.0,0.00030136,120]
[392794578,1761955348686,500.0,0.00030136,120]
[392794579,1761955349709,500.0,0.00030136,120]
[392794580,1761955350811,500.0,0.00030136,120]
[392794581,1761955351083,1628.43,0.00030136,120]
[392794582,1761955357634,500.0,0.00030136,120]
[392794583,1761955357852,500.0,0.00030136,120]
[392794584,1761955361958,500.0,0.00030136,120]
[392794585,1761955367079,682.41,0.00030136,120]
[392794586,1761955369132,500.0,0.00030136,120]
[392794587,1761955370976,500.0,0.00030136,120]
[392794588,1761955374788,500.0,0.00030136,120]
[392794592,1761955378491,500.0,0.00030136,120]
[392794597,1761955385452,207.71316814,0.00030136,120]
[392794598,1761955385522,500.0,0.00030136,120]
[392794599,1761955385632,500.0,0.00030136,120]
[392794601,1761955387303,500.0,0.00030136,120]
[392794605,1761955394953,500.0,0.00030136,120]
[392794606,1761955396471,500.0,0.00030136,120]
[392794609,1761955397719,500.0,0.00030136,120]
[392794610,1761955403656,500.0,0.00030136,120]
[392794611,1761955406866,500.0,0.00030136,120]
[392794614,1761955413070,500.0,0.00030136,120]
[392794615,1761955414261,500.0,0.00030136,120]
[392794616,1761955419145,500.0,0.00030136,120]
[392794617,1761955420690,500.0,0.00030136,120]
[392794619,1761955424186,500.0,0.00030136,120]
[392794620,1761955430973,604.94,0.00030136,120]
[392794621,1761955433240,500.0,0.00030136,120]
[392794623,1761955436667,520.78,0.00030136,120]
[392794624,1761955438866,500.0,0.00030136,120]
[392794625,1761955438971,500.0,0.00030136,120]
[392794626,1761955439626,500.0,0.00030136,120]
[392794627,1761955440632,507.11,0.00030136,120]
[392794630,1761955448959,500.0,0.00030136,120]
[392794631,1761955450358,500.0,0.00030136,120]
[392794632,1761955453233,500.0,0.00030136,120]
[392794633,1761955453443,410.82278807,0.00030136,120]
[392794634,1761955457087,396.83651861,0.00030136,120]
[392794635,1761955458602,500.0,0.00030136,120]
[392794639,1761955469568,500.0,0.00030136,120]
[392794640,1761955479951,500.0,0.00030136,120]
[392794642,1761955486061,500.0,0.00030136,120]
[392794646,1761955493915,515.20939095,0.00030136,120]
[392794647,1761955499145,500.0,0.00030136,120]
[392794648,1761955506816,500.0,0.00030136,120]
[392794649,1761955508827,500.0,0.00030136,120]
[392794650,1761955510487,150.0,0.00013488,2]
[392794652,1761955513047,150.0,0.00013488,2]
[392794653,1761955514458,500.0,0.00030136,120]
[392794655,1761955516975,150.00000001,0.00013488,2]
[392794657,1761955523810,500.0,0.00030136,120]
[392794658,1761955524169,153.62878228,0.00013488,2]
[392794659,1761955524819,500.0,0.00030136,120]
[392794660,1761955525114,500.0,0.00030136,120]
[392794661,1761955527264,500.0,0.00030136,120]
[392794662,1761955528312,500.0,0.00030136,120]
[392794663,1761955529530,150.00000001,0.00013488,2]
[392794664,1761955529850,150.00000001,0.00013488,2]
[392794665,1761955532710,500.0,0.00030136,120]
[392794666,1761955534888,500.0,0.00030136,120]
[392794667,1761955538734,500.0,0.00030136,120]
[392794668,1761955542337,500.0,0.00030136,120]
[392794669,1761955543561,500.0,0.00030136,120]
[392794670,1761955546215,500.0,0.00030136,120]
[392794671,1761955546700,500.0,0.00030136,120]
[392794672,1761955546759,339.5820726,0.00030136,120]
[392794673,1761955547472,444.35494127,0.00030136,120]
[392794674,1761955555788,500.0,0.00030136,120]
[392794675,1761955557111,500.0,0.00030136,120]
[392794676,1761955562981,151.0,0.00013488,2]
[392794677,1761955563021,151.0,0.00013488,2]
[392794678,1761955563777,500.0,0.00030136,120]
[392794679,1761955563967,151.0,0.00013488,2]
[392794680,1761955565251,500.0,0.00030136,120]
[392794681,1761955565325,500.0,0.00030136,120]
[392794682,1761955567013,500.0,0.00030136,120]
[392794683,1761955570571,2652.33,0.00030136,120]
[392794684,1761955581746,500.0,0.00030136,120]
[392794685,1761955588709,500.0,0.00030136,120]
[392794686,1761955591994,1000.0,0.00030136,120]
[392794687,1761955595707,500.0,0.00030136,120]
[392794688,1761955596423,500.0,0.00030136,120]
[392794689,1761955598199,500.0,0.00030136,120]
[392794690,1761955599550,238.51540637,0.00030136,120]
[392794691,1761955601877,500.0,0.00030136,120]
[392794692,1761955603242,500.0,0.00030136,120]
[392794693,1761955605591,500.0,0.00030136,120]
[392794695,1761955608047,500.0,0.00030136,120]
[392794696,1761955610077,500.0,0.00030136,120]
[392794697,1761955612087,171.98598731,0.00030136,120]
[392794698,1761955612320,500.0,0.00030136,120]
[392794699,1761955615629,500.0,0.00030136,120]
[392794700,1761955616425,500.0,0.00030136,120]
[392794701,1761955618235,500.0,0.00030136,120]
[392794702,1761955626074,500.0,0.00030136,120]
[392794705,1761955630417,500.0,0.00030136,120]
[392794706,1761955630646,500.0,0.00030136,120]
[392794707,1761955635101,500.0,0.00030136,120]
[392794708,1761955635788,500.0,0.00030136,120]
[392794709,1761955636670,313.97648132,0.00030136,120]
[392794710,1761955638057,500.0,0.00030136,120]
[392794711,1761955640311,500.0,0.00030136,120]
[392794712,1761955642284,500.0,0.00030136,120]
[392794714,1761955644985,500.0,0.00030136,120]
[392794715,1761955647251,500.0,0.00030136,120]
[392794716,1761955652536,500.0,0.00030136,120]
[392794717,1761955652625,500.0,0.00030136,120]
[392794718,1761955652839,500.0,0.00030136,120]
[392794719,1761955655426,500.0,0.00030136,120]
[392794720,1761955656601,500.0,0.00030136,120]
[392794721,1761955662702,500.0,0.00030136,120]
[392794722,1761955663606,500.0,0.00030136,120]
[392794723,1761955665057,500.0,0.00030136,120]
[392794724,1761955669374,500.0,0.00030136,120]
[392794725,1761955674502,500.0,0.00030136,120]
[392794726,1761955674593,229.74145988,0.00030136,120]
[392794727,1761955675568,500.0,0.00030136,120]
[392794728,1761955676644,500.0,0.00030136,120]
[392794730,1761955684806,500.0,0.00030136,120]
[392794731,1761955684865,500.0,0.00030136,120]
[392794732,1761955685789,500.0,0.00030136,120]
[392794733,1761955690555,500.0,0.00030136,120]
[392794734,1761955696542,485.79288797,0.00030136,120]
[392794735,1761955697595,583.25,0.00030136,120]
[392794736,1761955699050,500.0,0.00030136,120]
[392794737,1761955701693,500.0,0.00030136,120]
[392794739,1761955703803,500.0,0.00030136,120]
[392794740,1761955706598,500.0,0.00030136,120]
[392794741,1761955707134,555.53,0.00030136,120]
[392794742,1761955715980,500.0,0.00030136,120]
[392794743,1761955716788,211.32083967,0.00030136,120]
[392794744,1761955717066,500.0,0.00030136,120]
[392794745,1761955717628,500.0,0.00030136,120]
[392794746,1761955717946,500.0,0.00030136,120]
[392794747,1761955719812,500.0,0.00030136,120]
[392794748,1761955726803,535.41,0.00030136,120]
[392794749,1761955728207,641.02404871,0.00030136,120]
[392794750,1761955729238,500.0,0.00030136,120]
[392794751,1761955733774,540.67,0.00030136,120]
[392794752,1761955734417,500.0,0.00030136,120]
[392794753,1761955735368,500.0,0.00030136,120]
[392794754,1761955736962,500.0,0.00030136,120]
[392794755,1761955741534,539.3,0.00030136,120]
[392794756,1761955743114,500.0,0.00030136,120]
[392794757,1761955749925,500.0,0.00030136,120]
[392794758,1761955751754,500.0,0.00030136,120]
[392794759,1761955753709,500.0,0.00030136,120]
[392794760,1761955754798,500.0,0.00030136,120]
[392794761,1761955756040,500.0,0.00030136,120]
[392794762,1761955757569,608.83,0.00030136,120]
[392794763,1761955761968,500.0,0.00030136,120]
[392794764,1761955762535,500.0,0.00030136,120]
[392794765,1761955763664,500.0,0.00030136,120]
[392794766,1761955764196,500.0,0.00030136,120]
[392794767,1761955767284,455.95994796,0.00030136,120]
[392794768,1761955768218,500.0,0.00030136,120]
[392794769,1761955768539,1000.0,0.00030136,120]
[392794770,1761955769413,238.63974391,0.00030136,120]
[392794771,1761955770468,500.0,0.00030136,120]
[392794772,1761955771824,551.74,0.00030136,120]
[392794773,1761955772185,500.0,0.00030136,120]
[392794774,1761955772513,500.0,0.00030136,120]
[392794775,1761955775026,500.0,0.00030136,120]
[392794776,1761955780797,471.19215736,0.00030136,120]
[392794777,1761955781067,500.0,0.00030136,120]
[392794778,1761955782087,2541.81,0.00030136,120]
[392794779,1761955783156,500.0,0.00030136,120]
[392794780,1761955788167,500.0,0.00030136,120]
[392794781,1761955788728,500.0,0.00030136,120]
[392794782,1761955789776,500.0,0.00030136,120]
[392794783,1761955789956,500.0,0.00030136,120]
[392794784,1761955793895,500.0,0.00030136,120]
[392794785,1761955794342,500.0,0.00030136,120]
[392794786,1761955796571,500.0,0.00030136,120]
[392794787,1761955797930,500.0,0.00030136,120]
[392794788,1761955801481,500.0,0.00030136,120]
[392794789,1761955801894,500.0,0.00030136,120]
[392794790,1761955803398,500.0,0.00030136,120]
[392794791,1761955806030,500.0,0.00030136,120]
[392794792,1761955807185,500.0,0.00030136,120]
[392794793,1761955807293,500.0,0.00030136,120]
[392794794,1761955810999,500.0,0.00030136,120]
[392794795,1761955811865,500.0,0.00030136,120]
[392794796,1761955816288,671.72,0.00030136,120]
[392794797,1761955820330,500.0,0.00030136,120]
[392794798,1761955820912,500.0,0.00030136,120]
[392794799,1761955824323,500.0,0.00030136,120]
[392794800,1761955826250,500.0,0.00030136,120]
[392794801,1761955826793,816.61,0.00030136,120]
[392794802,1761955830534,500.0,0.00030136,120]
[392794813,1761955831811,-599.88,0.00013699,2]
[392794815,1761955831821,-227.11313014,0.00013845,2]
[392794817,1761955831831,-300.0,0.00013992,2]
[392794819,1761955831843,-9.25727479,0.00013992,2]
[392794821,1761955831881,-1190.74272521,0.00013992,2]
[392794822,1761955831891,-300.0,0.00013992,2]
[392794823,1761955831900,-1847.19472853,0.00013993,2]
[392794824,1761955832069,-823.88404497,0.00013993,2]
[392794825,1761955832081,-22443.9812265,0.00013993,2]
[392794826,1761955832091,-1517.0,0.00014,2]
[392794827,1761955832100,-1000.0,0.00014052,2]
[392794828,1761955832110,-203.5,0.00014105,2]
[392794829,1761955832119,-150.0,0.00014147,2]
[392794830,1761955832129,-500.0,0.00014147,2]
[392794831,1761955832138,-863.24389556,0.00014616,2]
[392794832,1761955832147,-221.61206356,0.00014783,2]
[392794833,1761955832156,-99.08163615,0.00014799,2]
[392794834,1761955832167,-522.03688778,0.00014799,2]
[392794835,1761955832179,-223.88147607,0.00014799,2]
[392794836,1761955832188,-122.52801431,0.000148,2]
[392794838,1761955832207,-1806.26311834,0.000148,2]
[392794840,1761955832216,-1114.21,0.00014833,2]
[392794842,1761955832226,-508.67373169,0.00014873,2]
[392794844,1761955832236,-503.0,0.00014877,2]
[392794846,1761955832246,-203.5,0.00014889,2]
[392794848,1761955832255,-150.0,0.00014898,2]
[392794850,1761955832264,-1000.0,0.00014899,2]
[392794852,1761955832273,-4833.2231521,0.00014899,2]
[392794854,1761955832282,-3358.729,0.00014899,2]
[392794856,1761955832291,-167.621,0.00014899,2]
[392794858,1761955832300,-161.96918179,0.000149,2]
[392794860,1761955832310,-899.6748,0.000149,2]
[392794862,1761955832319,-150.9870436,0.000149,2]
[392794864,1761955832328,-328.5856073,0.000149,2]
[392794866,1761955832338,-159.12,0.00014934,2]
[392794868,1761955832347,-530.15,0.00014959,2]
[392794870,1761955832356,-501.28256692,0.00014973,2]
[392794872,1761955832366,-500.0,0.00014973,2]
[392794874,1761955832375,-500.0,0.00014973,2]
[392794876,1761955832385,-153.47403075,0.00014973,2]
[392794878,1761955832394,-500.0,0.00014973,2]
[392794880,1761955832403,-500.0,0.00014973,2]
[392794882,1761955832412,-500.0,0.00014973,2]
[392794884,1761955832422,-500.0,0.00014973,2]
[392794886,1761955832431,-150.12458609,0.00014973,2]
[392794888,1761955832440,-500.0,0.00014973,2]
[392794890,1761955832449,-500.0,0.00014973,2]
[392794892,1761955832458,-500.0,0.00014973,2]
[392794894,1761955832467,-500.0,0.00014973,2]
[392794896,1761955832476,-492.17407558,0.00014973,2]
[392794898,1761955832488,-7.82592442,0.00014973,2]
[392794900,1761955832497,-1092.13,0.00014973,2]
[392794902,1761955832506,-150.0,0.00014986,2]
[392794904,1761955832515,-500.0,0.00014991,2]
[392794906,1761955832525,-151.0,0.00014991,2]
[392794908,1761955832534,-151.0,0.00014991,2]
[392794910,1761955832544,-151.0,0.00014991,2]
[392794912,1761955832553,-151.0,0.00014991,2]
[392794914,1761955832562,-151.0,0.00014991,2]
[392794916,1761955832571,-151.0,0.00014991,2]
[392794918,1761955832580,-151.0,0.00014991,2]
[392794920,1761955832590,-151.0,0.00014991,2]
[392794922,1761955832599,-151.0,0.00014991,2]
[392794924,1761955832609,-151.0,0.00014991,2]
[392794926,1761955832618,-151.0,0.00014991,2]
[392794928,1761955832627,-150.0,0.00014999,2]
[392794930,1761955832639,-500.0,0.00014999,2]
[392794932,1761955832648,-508.68908794,0.00014999,2]
[392794934,1761955832658,-500.0,0.00014999,2]
[392794936,1761955832667,-500.0,0.00014999,2]
[392794938,1761955832676,-500.0,0.00014999,2]
[392794940,1761955832686,-500.0,0.00014999,2]
[392794942,1761955832698,-500.0,0.00014999,2]
[392794944,1761955832708,-500.0,0.00014999,2]
[392794946,1761955832718,-500.0,0.00014999,2]
[392794948,1761955832728,-500.0,0.00014999,2]
[392794950,1761955832737,-500.0,0.00014999,2]
[392794952,1761955832746,-500.0,0.00014999,2]
[392794954,1761955832755,-500.0,0.00014999,2]
[392794956,1761955832765,-506.29907877,0.00014999,2]
[392794958,1761955832775,-500.0,0.00014999,2]
[392794961,1761955832785,-500.0,0.00014999,2]
[392794963,1761955832794,-500.0,0.00014999,2]
[392794965,1761955832803,-500.0,0.00014999,2]
[392794967,1761955832813,-537.33616895,0.00014999,2]
[392794969,1761955832822,-500.0,0.00014999,2]
[392794971,1761955832831,-500.0,0.00014999,2]
[392794973,1761955832841,-150.0,0.00014999,2]
[392794975,1761955832850,-150.0,0.00014999,2]
[392794977,1761955832859,-150.0,0.00014999,2]
[392794979,1761955832868,-459.0,0.00014999,2]
[392794981,1761955832877,-150.0,0.00014999,2]
[392794983,1761955832886,-777.0,0.00014999,2]
[392794985,1761955832896,-500.0,0.00014999,2]
[392794987,1761955832905,-240.00564482,0.00014999,2]
[392794989,1761955832914,-150.0,0.00014999,2]
[392794991,1761955832923,-150.0,0.00014999,2]
[392794993,1761955832932,-150.0,0.00014999,2]
[392794995,1761955832941,-500.0,0.00014999,2]
[392794997,1761955832950,-150.0,0.00014999,2]
[392794999,1761955832959,-150.0,0.00014999,2]
[392795001,1761955832969,-150.0,0.00014999,2]
[392795003,1761955832978,-150.0,0.00014999,2]
[392795005,1761955832987,-150.0,0.00014999,2]
[392795007,1761955832996,-150.0,0.00014999,2]
[392795009,1761955833005,-150.0,0.00014999,2]
[392795011,1761955833019,-150.0,0.00014999,2]
[392795013,1761955833028,-150.0,0.00014999,2]
[392795015,1761955833037,-500.0,0.00014999,2]
[392795017,1761955833046,-500.0,0.00014999,2]
[392795019,1761955833056,-188.28140626,0.00014999,2]
[392795021,1761955833065,-500.0,0.00014999,2]
[392795023,1761955833074,-500.0,0.00014999,2]
[392795025,1761955833083,-500.0,0.00014999,2]
[392795027,1761955833093,-500.0,0.00014999,2]
[392795029,1761955833102,-500.0,0.00014999,2]
[392795031,1761955833112,-522.44419674,0.00014999,2]
[392795033,1761955833121,-500.0,0.00014999,2]
[392795035,1761955833130,-500.0,0.00014999,2]
[392795037,1761955833139,-294.76815458,0.00014999,2]
[392795039,1761955833148,-500.0,0.00014999,2]
[392795041,1761955833157,-500.0,0.00014999,2]
[392795043,1761955833166,-500.0,0.00014999,2]
[392795045,1761955833174,-500.0,0.00014999,2]
[392795047,1761955833182,-165.90658261,0.00014999,2]
[392795049,1761955833195,-334.09341739,0.00014999,2]
[392795051,1761955833204,-500.0,0.00014999,2]
[392795053,1761955833213,-500.0,0.00014999,2]
[392795055,1761955833222,-500.0,0.00014999,2]
[392795057,1761955833231,-500.0,0.00014999,2]
[392795059,1761955833241,-500.0,0.00014999,2]
[392795061,1761955833250,-500.0,0.00014999,2]
[392795063,1761955833260,-500.0,0.00014999,2]
[392795065,1761955833269,-500.0,0.00014999,2]
[392795067,1761955833279,-500.0,0.00014999,2]
[392795069,1761955833289,-500.0,0.00014999,2]
[392795071,1761955833299,-500.0,0.00014999,2]
[392795073,1761955833308,-500.0,0.00014999,2]
[392795075,1761955833318,-500.0,0.00014999,2]
[392795077,1761955833327,-500.0,0.00014999,2]
[392795079,1761955833336,-500.0,0.00014999,2]
[392795081,1761955833347,-500.0,0.00014999,2]
[392795083,1761955833356,-500.0,0.00014999,2]
[392795085,1761955833366,-500.0,0.00014999,2]
[392795087,1761955833375,-500.0,0.00014999,2]
[392795089,1761955833384,-500.0,0.00014999,2]
[392795091,1761955833393,-500.0,0.00014999,2]
[392795093,1761955833402,-500.0,0.00014999,2]
[392795095,1761955833411,-500.0,0.00014999,2]
[392795097,1761955833421,-500.0,0.00014999,2]
[392795099,1761955833430,-500.0,0.00014999,2]
[392795101,1761955833439,-500.0,0.00014999,2]
[392795103,1761955833448,-500.0,0.00014999,2]
[392795105,1761955833458,-329.91448685,0.00014999,2]
[392795107,1761955833467,-155.0,0.00014999,2]
[392795109,1761955833477,-500.0,0.00014999,2]
[392795111,1761955833487,-82172.10853175,0.00015,2]
[392795113,1761955833498,-3150.28435755,0.00015,2]
[392795116,1761955833510,-1190.50963109,0.00015,2]
[392795118,1761955833522,-1111.59219997,0.00015,2]
[392795172,1761955835103,500.0,0.00030136,120]
[392795173,1761955836494,500.0,0.00030136,120]
[392795174,1761955837402,500.0,0.00030136,120]
[392795205,1761955838419,-500.0,0.00014999,2]
[392795207,1761955838429,-423.07047606,0.00014999,2]
[392795209,1761955838439,-289.28109739,0.00014999,2]
[392795211,1761955838448,-500.0,0.00014999,2]
[392795213,1761955838458,-231.16652095,0.00014999,2]
[392795215,1761955838467,-500.0,0.00014999,2]
[392795217,1761955838477,-150.0,0.00014999,2]
[392795219,1761955838486,-150.0,0.00014999,2]
[392795221,1761955838495,-150.0,0.00014999,2]
[392795223,1761955838505,-150.0,0.00014999,2]
[392795225,1761955838514,-66051.06169872,0.00015,2]
[392795228,1761955838525,-5612441.03588557,0.00015,2]
[392795230,1761955838535,-25238.05757972,0.00015,2]
[392795232,1761955838546,-45107.59335742,0.00015,2]
[392795234,1761955838555,-15576.5494927,0.00015,2]
[392795236,1761955838565,-19057.0993884,0.00015,2]
[392795238,1761955838574,-160.0,0.00015,2]
[392795240,1761955838583,-232238.63276759,0.00015,2]
[392795243,1761955838603,-6647.06191176,0.00015,2]
[392795244,1761955838614,-28597.94398233,0.00015,2]
[392795245,1761955838627,-14817.74864617,0.00015,2]
[392795246,1761955838638,-18268.1762931,0.00015,2]
[392795247,1761955838649,-7417.36563672,0.00015,2]
[392795248,1761955838660,-550.30155025,0.00015,2]
[392795249,1761955838671,-68869.23443135,0.00015,2]
[392795250,1761955838697,-1100.3964,0.00015,2]
[392795253,1761955839978,583.41,0.00030136,120]
[392795254,1761955839992,-253.76911996,0.00014999,2]
[392795255,1761955840004,-246.23088004,0.00014999,2]
[392795256,1761955840017,-10959.76911996,0.00015,2]
[392795257,1761955840041,-13896.43629089,0.00015,2]
[392795258,1761955840054,-36336.51291817,0.00015,2]
[392795259,1761955840066,-40818.90951778,0.00015,2]
[392795260,1761955840078,-63332.52962175,0.00015,2]
[392795261,1761955840089,-391.74,0.00015,2]
[392795262,1761955840229,-550.55,0.00015,2]
[392795359,1761955844354,500.0,0.00030136,120]
[392795401,1761955846093,-2203.99,0.00015,2]
[392795403,1761955846105,-2362.74816605,0.00015,2]
[392795413,1761955846485,500.0,0.00030136,120]
[392795414,1761955860923,500.0,0.00030136,120]
[392795415,1761955863300,500.0,0.00030136,120]
[392795416,1761955863724,500.0,0.00030136,120]
[392795417,1761955864006,500.0,0.00030136,120]
[392795418,1761955874565,178.03982956,0.00030136,120]
[392795419,1761955877993,500.0,0.00030136,120]
[392795420,1761955878754,500.0,0.00030136,120]
[392795421,1761955881242,565.23,0.00030136,120]
[392795422,1761955883891,500.0,0.00030136,120]
[392795423,1761955886077,500.0,0.00030136,120]
[392795424,1761955888305,500.0,0.00030136,120]
[392795425,1761955895232,500.0,0.00030136,120]
[392795426,1761955898939,500.0,0.00030136,120]
[392795427,1761955899148,500.0,0.00030136,120]
[392795428,1761955902422,500.0,0.00030136,120]
[392795429,1761955904679,500.0,0.00030136,120]
[392795430,1761955906939,500.0,0.00030136,120]
[392795431,1761955907777,500.0,0.00030136,120]
[392795432,1761955912315,500.0,0.00030136,120]
[392795433,1761955917476,500.0,0.00030136,120]
[392795434,1761955919731,531.87063494,0.00030136,120]
[392795435,1761955920629,500.0,0.00030136,120]
[392795436,1761955922963,500.0,0.00030136,120]
[392795437,1761955923626,500.0,0.00030136,120]
[392795438,1761955925130,500.0,0.00030136,120]
[392795439,1761955926153,500.0,0.00030136,120]
[392795440,1761955932357,500.0,0.00030136,120]
[392795441,1761955933192,500.0,0.00030136,120]
[392795442,1761955934669,500.0,0.00030136,120]
[392795443,1761955936768,1715.67,0.00030136,120]
[392795444,1761955939389,196.41855683,0.00030136,120]
[392795445,1761955940107,500.0,0.00030136,120]
[392795446,1761955948025,500.0,0.00030136,120]
[392795447,1761955949205,500.0,0.00030136,120]
[392795448,1761955950222,500.0,0.00030136,120]
[392795449,1761955950338,653.97,0.00030136,120]
[392795450,1761955957182,500.0,0.00030136,120]
[392795453,1761955958117,300.0,0.00030136,120]
[392795455,1761955958851,834.86,0.00030136,120]
[392795456,1761955964965,500.0,0.00030136,120]
[392795457,1761955966496,500.0,0.00030136,120]
[392795458,1761955970413,500.0,0.00030136,120]
[392795459,1761955970817,500.0,0.00030136,120]
[392795460,1761955974990,500.0,0.00030136,120]